fUSD/lending_fUSD_20250828
["ID","MTS","AMOUNT","RATE_DAILY","PERIOD"]
[381769583,1756339841268,-400.0,0.00017546,2]
[381769584,1756339841280,-400.0,0.00017546,2]
[381769585,1756339841292,-400.0,0.00017546,2]
[381769586,1756339841304,-400.0,0.00017546,2]
[381769587,1756339841316,-400.0,0.00017546,2]
[381769588,1756339841327,-400.0,0.00017546,2]
[381769589,1756339841338,-400.0,0.00017546,2]
[381769590,1756339841351,-400.0,0.00017546,2]
[381769591,1756339841362,-400.0,0.00017546,2]
[381769592,1756339841373,-400.0,0.00017546,2]
[381769593,1756339841384,-417.24,0.00017546,2]
[381769594,1756339841395,-400.0,0.00017546,2]
[381769595,1756339841408,-500.0,0.00017546,2]
[381769596,1756339841421,-400.0,0.00017546,2]
[381769597,1756339841432,-400.0,0.00017546,2]
[381769598,1756339841444,-400.0,0.00017546,2]
[381769599,1756339841455,-483.64,0.00017546,2]
[381769600,1756339841468,-400.0,0.00017546,2]
[381769601,1756339841480,-400.0,0.00017546,2]
[381769602,1756339841490,-400.0,0.00017546,2]
[381769603,1756339841500,-430.52,0.00017546,2]
[381769604,1756339841510,-400.0,0.00017546,2]
[381769605,1756339841521,-400.0,0.00017546,2]
[381769606,1756339841532,-400.0,0.00017546,2]
[381769607,1756339841544,-400.0,0.00017546,2]
[381769608,1756339841558,-400.0,0.00017546,2]
[381769609,1756339841570,-400.0,0.00017546,2]
[381769610,1756339841580,-400.0,0.00017546,2]
[381769611,1756339841591,-400.0,0.00017546,2]
[381769612,1756339841603,-485.74,0.00017546,2]
[381769613,1756339841614,-421.13,0.00017546,2]
[381769614,1756339841628,-400.0,0.00017546,2]
[381769615,1756339841639,-400.0,0.00017546,2]
[381769616,1756339841651,-400.0,0.00017546,2]
[381769617,1756339841665,-487.56,0.00017546,2]
[381769618,1756339841677,-400.0,0.00017546,2]
[381769619,1756339841688,-400.0,0.00017546,2]
[381769620,1756339841699,-449.81,0.00017546,2]
[381769621,1756339841709,-239.2,0.00017546,2]
[381769622,1756339841720,-422.85,0.00017546,2]
[381769623,1756339841732,-815.48,0.00017546,2]
[381769624,1756339841742,-501.07,0.00017546,2]
[381769625,1756339841755,-472.15,0.00017546,2]
[381769626,1756339841766,-400.0,0.00017546,2]
[381769627,1756339841776,-253.7,0.00017546,2]
[381769628,1756339841787,-400.0,0.00017546,2]
[381769629,1756339841797,-400.0,0.00017546,2]
[381769630,1756339841808,-400.0,0.00017546,2]
[381769631,1756339841821,-400.0,0.00017546,2]
[381769632,1756339841831,-443.13,0.00017546,2]
[381769633,1756339841844,-400.0,0.00017546,2]
[381769634,1756339841856,-506.53,0.00017546,2]
[381769635,1756339841868,-400.0,0.00017546,2]
[381769636,1756339841879,-400.0,0.00017546,2]
[381769637,1756339841890,-511.61,0.00017546,2]
[381769638,1756339841902,-400.0,0.00017546,2]
[381769639,1756339841912,-400.0,0.00017546,2]
[381769640,1756339841923,-400.0,0.00017546,2]
[381769641,1756339841937,-400.0,0.00017546,2]
[381769642,1756339841948,-502.42174646,0.00017546,2]
[381769643,1756339841958,-400.0,0.00017546,2]
[381769644,1756339841969,-400.0,0.00017546,2]
[381769645,1756339841987,-400.0,0.00017546,2]
[381769646,1756339841998,-400.0,0.00017546,2]
[381769647,1756339842009,-400.0,0.00017546,2]
[381769648,1756339842020,-400.0,0.00017546,2]
[381769649,1756339842030,-400.0,0.00017546,2]
[381769650,1756339842041,-400.0,0.00017546,2]
[381769651,1756339842051,-400.0,0.00017546,2]
[381769652,1756339842063,-400.0,0.00017546,2]
[381769653,1756339842075,-400.0,0.00017546,2]
[381769654,1756339842086,-400.0,0.00017546,2]
[381769655,1756339842096,-400.0,0.00017546,2]
[381769656,1756339842108,-400.0,0.00017546,2]
[381769657,1756339842120,-413.97,0.00017546,2]
[381769658,1756339842132,-400.0,0.00017546,2]
[381769659,1756339842143,-400.0,0.00017546,2]
[381769660,1756339842154,-150.40536628,0.00017546,2]
[381769661,1756339842167,-400.0,0.00017546,2]
[381769662,1756339842182,-400.0,0.00017546,2]
[381769663,1756339842197,-400.0,0.00017546,2]
[381769664,1756339842208,-401.23,0.00017546,2]
[381769665,1756339842219,-176.08955272,0.00017546,2]
[381769666,1756339842230,-400.0,0.00017546,2]
[381769667,1756339842241,-345.79,0.00017546,2]
[381769668,1756339842252,-400.0,0.00017546,2]
[381769669,1756339842263,-443.7,0.00017546,2]
[381769670,1756339842275,-400.0,0.00017546,2]
[381769671,1756339842287,-400.0,0.00017546,2]
[381769672,1756339842297,-400.0,0.00017546,2]
[381769673,1756339842308,-400.0,0.00017546,2]
[381769674,1756339842319,-403.31,0.00017546,2]
[381769675,1756339842330,-400.0,0.00017546,2]
[381769676,1756339842341,-400.0,0.00017546,2]
[381769677,1756339842352,-400.0,0.00017546,2]
[381769678,1756339842363,-400.0,0.00017546,2]
[381769679,1756339842377,-444.38,0.00017546,2]
[381769680,1756339842388,-400.0,0.00017546,2]
[381769681,1756339842399,-400.0,0.00017546,2]
[381769682,1756339842410,-400.0,0.00017546,2]
[381769684,1756339842420,-402.59,0.00017546,2]
[381769687,1756339842432,-400.0,0.00017546,2]
[381769689,1756339842443,-400.0,0.00017546,2]
[381769691,1756339842454,-400.0,0.00017546,2]
[381769693,1756339842465,-277.22,0.00017546,2]
[381769695,1756339842475,-400.0,0.00017546,2]
[381769698,1756339842486,-400.0,0.00017546,2]
[381769700,1756339842496,-400.0,0.00017546,2]
[381769702,1756339842507,-400.0,0.00017546,2]
[381769704,1756339842518,-400.0,0.00017546,2]
[381769706,1756339842528,-400.0,0.00017546,2]
[381769709,1756339842540,-226.73743343,0.00017546,2]
[381769712,1756339842552,-400.0,0.00017546,2]
[381769714,1756339842564,-400.0,0.00017546,2]
[381769716,1756339842574,-400.0,0.00017546,2]
[381769719,1756339842585,-500.0,0.00017546,2]
[381769724,1756339842596,-400.0,0.00017546,2]
[381769726,1756339842609,-640.12,0.00017546,2]
[381769729,1756339842619,-400.0,0.00017546,2]
[381769731,1756339842631,-243.23,0.00017546,2]
[381769733,1756339842643,-405.5,0.00017546,2]
[381769735,1756339842653,-400.0,0.00017546,2]
[381769737,1756339842665,-400.0,0.00017546,2]
[381769739,1756339842675,-400.0,0.00017546,2]
[381769742,1756339842686,-400.0,0.00017546,2]
[381769744,1756339842697,-400.0,0.00017546,2]
[381769746,1756339842708,-400.0,0.00017546,2]
[381769748,1756339842719,-400.0,0.00017546,2]
[381769749,1756339842730,-400.0,0.00017546,2]
[381769750,1756339842741,-297.22,0.00017546,2]
[381769751,1756339842752,-400.0,0.00017546,2]
[381769752,1756339842763,-400.0,0.00017546,2]
[381769753,1756339842773,-400.0,0.00017546,2]
[381769754,1756339842784,-400.0,0.00017546,2]
[381769755,1756339842795,-529.49473087,0.00017546,2]
[381769756,1756339842805,-400.0,0.00017546,2]
[381769757,1756339842816,-301.82,0.00017546,2]
[381769758,1756339842827,-438.53,0.00017546,2]
[381769759,1756339842838,-400.0,0.00017546,2]
[381769760,1756339842849,-400.0,0.00017546,2]
[381769761,1756339842863,-400.0,0.00017546,2]
[381769762,1756339842873,-400.0,0.00017546,2]
[381769763,1756339842884,-400.0,0.00017546,2]
[381769764,1756339842894,-498.15,0.00017546,2]
[381769765,1756339842906,-400.0,0.00017546,2]
[381769766,1756339842916,-288.01763645,0.00017546,2]
[381769767,1756339842926,-400.0,0.00017546,2]
[381769768,1756339842939,-441.42,0.00017546,2]
[381769769,1756339842950,-241.28,0.00017546,2]
[381769770,1756339842960,-400.0,0.00017546,2]
[381769771,1756339842971,-400.0,0.00017546,2]
[381769772,1756339842982,-402.48,0.00017546,2]
[381769773,1756339842994,-400.0,0.00017546,2]
[381769774,1756339843005,-400.0,0.00017546,2]
[381769775,1756339843016,-400.0,0.00017546,2]
[381769776,1756339843026,-204.00679713,0.00017546,2]
[381769777,1756339843036,-400.0,0.00017546,2]
[381769778,1756339843047,-609.59,0.00017546,2]
[381769779,1756339843057,-400.0,0.00017546,2]
[381769780,1756339843068,-540.61,0.00017546,2]
[381769781,1756339843079,-400.0,0.00017546,2]
[381769782,1756339843088,-278.5,0.00017546,2]
[381769783,1756339843099,-400.0,0.00017546,2]
[381769785,1756339843109,-400.0,0.00017546,2]
[381769786,1756339843120,-400.0,0.00017546,2]
[381769787,1756339843130,-400.0,0.00017546,2]
[381769788,1756339843141,-403.42,0.00017546,2]
[381769789,1756339843151,-400.0,0.00017546,2]
[381769790,1756339843162,-475.26,0.00017546,2]
[381769791,1756339843172,-500.0,0.00017546,2]
[381769792,1756339843183,-483.78,0.00017546,2]
[381769793,1756339843193,-449.5,0.00017546,2]
[381769794,1756339843203,-400.0,0.00017546,2]
[381769795,1756339843214,-400.0,0.00017546,2]
[381769796,1756339843224,-400.0,0.00017546,2]
[381769797,1756339843234,-400.0,0.00017546,2]
[381769798,1756339843245,-400.0,0.00017546,2]
[381769799,1756339843255,-449.91,0.00017546,2]
[381769800,1756339843267,-256.19,0.00017546,2]
[381769801,1756339843277,-400.0,0.00017546,2]
[381769802,1756339843288,-400.0,0.00017546,2]
[381769803,1756339843299,-400.0,0.00017546,2]
[381769804,1756339843309,-400.0,0.00017546,2]
[381769805,1756339843319,-400.0,0.00017546,2]
[381769806,1756339843330,-400.0,0.00017546,2]
[381769807,1756339843341,-400.0,0.00017546,2]
[381769808,1756339843352,-405.09,0.00017546,2]
[381769809,1756339843362,-400.0,0.00017546,2]
[381769810,1756339843373,-400.0,0.00017546,2]
[381769811,1756339843384,-480.9,0.00017546,2]
[381769812,1756339843395,-400.0,0.00017546,2]
[381769813,1756339843408,-400.0,0.00017546,2]
[381769814,1756339843418,-467.55,0.00017546,2]
[381769815,1756339843429,-400.0,0.00017546,2]
[381769816,1756339843439,-708.57,0.00017546,2]
[381769817,1756339843451,-1779.4,0.00017546,2]
[381769818,1756339843463,-400.0,0.00017546,2]
[381769819,1756339843473,-400.0,0.00017546,2]
[381769820,1756339843484,-400.0,0.00017546,2]
[381769821,1756339843495,-400.0,0.00017546,2]
[381769822,1756339843505,-400.0,0.00017546,2]
[381769823,1756339843516,-400.0,0.00017546,2]
[381769824,1756339843527,-574.84,0.00017546,2]
[381769825,1756339843539,-400.0,0.00017546,2]
[381769826,1756339843552,-400.0,0.00017546,2]
[381769827,1756339843563,-470.81,0.00017546,2]
[381769828,1756339843574,-400.0,0.00017546,2]
[381769829,1756339843586,-772.33,0.00017546,2]
[381769830,1756339843596,-400.0,0.00017546,2]
[381769831,1756339843607,-400.0,0.00017546,2]
[381769832,1756339843618,-750.35,0.00017546,2]
[381769833,1756339843628,-400.0,0.00017546,2]
[381769834,1756339843638,-400.0,0.00017546,2]
[381769835,1756339843648,-400.0,0.00017546,2]
[381769836,1756339843659,-400.0,0.00017546,2]
[381769837,1756339843669,-400.0,0.00017546,2]
[381769838,1756339843680,-679.22,0.00017546,2]
[381769839,1756339843690,-409.72,0.00017546,2]
[381769840,1756339843701,-400.0,0.00017546,2]
[381769841,1756339843711,-400.0,0.00017546,2]
[381769842,1756339843721,-400.0,0.00017546,2]
[381769843,1756339843731,-400.0,0.00017546,2]
[381769844,1756339843742,-400.0,0.00017546,2]
[381769845,1756339843751,-400.0,0.00017546,2]
[381769846,1756339843763,-400.0,0.00017546,2]
[381769847,1756339843774,-472.38,0.00017546,2]
[381769848,1756339843784,-400.0,0.00017546,2]
[381769849,1756339843795,-400.0,0.00017546,2]
[381769850,1756339843805,-400.0,0.00017546,2]
[381769851,1756339843816,-400.0,0.00017546,2]
[381769852,1756339843826,-400.0,0.00017546,2]
[381769853,1756339843836,-499.79,0.00017546,2]
[381769854,1756339843847,-629.71,0.00017546,2]
[381769855,1756339843859,-400.0,0.00017546,2]
[381769856,1756339843870,-544.62,0.00017546,2]
[381769857,1756339843880,-468.92,0.00017546,2]
[381769858,1756339843891,-400.0,0.00017546,2]
[381769859,1756339843903,-400.0,0.00017546,2]
[381769860,1756339843913,-400.0,0.00017546,2]
[381769861,1756339843923,-400.0,0.00017546,2]
[381769862,1756339843935,-400.0,0.00017546,2]
[381769863,1756339843945,-400.0,0.00017546,2]
[381769864,1756339843955,-400.0,0.00017546,2]
[381769865,1756339843965,-400.0,0.00017546,2]
[381769866,1756339843976,-626.04,0.00017546,2]
[381769867,1756339843987,-400.0,0.00017546,2]
[381769868,1756339843997,-400.0,0.00017546,2]
[381769869,1756339844007,-467.28,0.00017546,2]
[381769870,1756339844023,-166.45,0.00017546,2]
[381769871,1756339844033,-400.0,0.00017546,2]
[381769872,1756339844044,-400.0,0.00017546,2]
[381769873,1756339844055,-400.0,0.00017546,2]
[381769874,1756339844065,-400.0,0.00017546,2]
[381769875,1756339844075,-400.0,0.00017546,2]
[381769876,1756339844086,-483.92943984,0.00017546,2]
[381769877,1756339844096,-400.0,0.00017546,2]
[381769878,1756339844107,-400.0,0.00017546,2]
[381769879,1756339844118,-400.0,0.00017546,2]
[381769880,1756339844129,-400.0,0.00017546,2]
[381769881,1756339844140,-3491.8520154,0.00017546,2]
[381769882,1756339844152,-212.21549908,0.00017547,2]
[381769883,1756339844163,-7675.822972,0.00017547,2]
[381769884,1756339844174,-200.0,0.00017547,2]
[381769885,1756339844184,-1632.86,0.00017547,2]
[381769886,1756339844195,-9889.18,0.00017547,2]
[381769887,1756339844206,-3824.55,0.00017547,2]
[381769888,1756339844807,-400.0,0.00017547,2]
[381769889,1756339844831,-4326.8292781,0.00017547,2]
[381769890,1756339844850,-400.0,0.00017547,2]
[381769891,1756339844862,-400.0,0.00017547,2]
[381769892,1756339844872,-400.0,0.00017547,2]
[381769893,1756339844882,-652.56,0.00017547,2]
[381769894,1756339844892,-400.0,0.00017547,2]
[381769895,1756339844902,-2302.99,0.00017547,2]
[381769896,1756339844912,-400.0,0.00017547,2]
[381769897,1756339844921,-400.0,0.00017547,2]
[381769898,1756339844930,-671.4,0.00017547,2]
[381769899,1756339844943,-400.0,0.00017547,2]
[381769900,1756339844954,-400.0,0.00017547,2]
[381769901,1756339844963,-400.0,0.00017547,2]
[381769902,1756339844972,-400.52,0.00017547,2]
[381769903,1756339844982,-542.81,0.00017547,2]
[381769904,1756339844992,-400.0,0.00017547,2]
[381769905,1756339845002,-443.89,0.00017547,2]
[381769906,1756339845012,-400.0,0.00017547,2]
[381769907,1756339845022,-444.17,0.00017547,2]
[381769908,1756339845032,-400.0,0.00017547,2]
[381769909,1756339845041,-400.0,0.00017547,2]
[381769910,1756339845051,-400.0,0.00017547,2]
[381769911,1756339845060,-400.0,0.00017547,2]
[381769912,1756339845070,-400.0,0.00017547,2]
[381769913,1756339845079,-533.0,0.00017547,2]
[381769914,1756339845089,-915.47503039,0.00017547,2]
[381769915,1756339845099,-474.76,0.00017547,2]
[381769916,1756339845108,-400.0,0.00017547,2]
[381769917,1756339845118,-2329.11,0.00017547,2]
[381769918,1756339845128,-3169.13983,0.00017547,2]
[381769919,1756339845137,-400.0,0.00017547,2]
[381769920,1756339845147,-550.95,0.00017547,2]
[381769921,1756339845158,-400.0,0.00017547,2]
[381769922,1756339845168,-406.72,0.00017547,2]
[381769923,1756339845178,-151.0,0.00017547,2]
[381769924,1756339845188,-151.0,0.00017547,2]
[381769925,1756339845197,-400.0,0.00017547,2]
[381769926,1756339845207,-400.0,0.00017547,2]
[381769927,1756339845217,-400.0,0.00017547,2]
[381769928,1756339845226,-152.45470568,0.00017557,2]
[381769929,1756339845237,-150.0,0.00017557,2]
[381769930,1756339845246,-150.0,0.00017557,2]
[381769931,1756339845256,-150.0,0.00017557,2]
[381769932,1756339845266,-150.0,0.00017557,2]
[381769933,1756339845276,-150.0,0.00017557,2]
[381769934,1756339845286,-150.0,0.00017557,2]
[381769935,1756339845296,-250.0,0.00017557,2]
[381769936,1756339845306,-250.0,0.00017557,2]
[381769937,1756339845316,-500.0,0.00017557,2]
[381769938,1756339845326,-150.0,0.00017557,2]
[381769939,1756339845335,-500.0,0.00017557,2]
[381769940,1756339845346,-900.0,0.00017557,2]
[381769941,1756339845355,-150.0,0.00017557,2]
[381769942,1756339845364,-150.0,0.00017557,2]
[381769943,1756339845374,-500.0,0.00017557,2]
[381769944,1756339845384,-500.0,0.00017557,2]
[381769945,1756339845393,-150.0,0.00017557,2]
[381769947,1756339845403,-151.35,0.00017562,2]
[381769948,1756339845413,-8566.00464866,0.00017565,2]
[381769949,1756339845423,-501.44256803,0.00017573,2]
[381769950,1756339845432,-500.55793421,0.00017573,2]
[381769951,1756339845442,-301.65434551,0.00017573,2]
[381769952,1756339845451,-500.0,0.00017573,2]
[381769953,1756339845461,-500.0,0.00017573,2]
[381769954,1756339845471,-500.0,0.00017573,2]
[381769955,1756339845480,-500.0,0.00017573,2]
[381769956,1756339845490,-500.0,0.00017573,2]
[381769957,1756339845500,-3491.8520154,0.00017597,2]
[381769958,1756339845510,-1000.0,0.000176,2]
[381769959,1756339845521,-2700.0,0.000176,6]
[381769960,1756339845531,-200.0,0.00017622,2]
[381769961,1756339845540,-8566.00464866,0.00017624,2]
[381769962,1756339845551,-606.0,0.00017638,2]
[381769963,1756339845561,-173.83,0.00017644,2]
[381769964,1756339845571,-3491.8520154,0.00017647,2]
[381769965,1756339845580,-1425.0,0.00017665,2]
[381769966,1756339845590,-183.05264219,0.00017673,2]
[381769967,1756339845599,-526.0,0.00017673,2]
[381769968,1756339845608,-4698.819,0.00017682,2]
[381769969,1756339845618,-182.391,0.00017682,2]
[381769970,1756339845627,-8566.00464866,0.00017683,2]
[381769971,1756339845636,-152.0,0.00017685,2]
[381769972,1756339845645,-3491.8520154,0.00017698,2]
[381769973,1756339845655,-400.0,0.00017699,2]
[381769974,1756339845664,-801.14,0.00017699,2]
[381769975,1756339845673,-4100.0,0.000177,6]
[381769976,1756339845683,-17339.94,0.000177,2]
[381769977,1756339845692,-250.0,0.00017708,2]
[381769978,1756339845702,-204.0,0.00017708,2]
[381769979,1756339845711,-252.0,0.00017708,2]
[381769981,1756339845721,-150.0,0.00017718,2]
[381769982,1756339845730,-200.0,0.00017718,2]
[381769983,1756339845739,-150.209,0.00017718,2]
[381769984,1756339845749,-150.441,0.00017718,2]
[381769985,1756339845761,-201.565,0.00017718,2]
[381769986,1756339845772,-203.764,0.00017718,2]
[381769987,1756339845782,-250.0,0.00017718,2]
[381769988,1756339845793,-296.794,0.00017718,2]
[381769989,1756339845802,-250.0,0.00017718,2]
[381769990,1756339845812,-150.126,0.00017718,2]
[381769991,1756339845821,-150.0,0.00017718,2]
[381769992,1756339845830,-150.0,0.00017718,2]
[381769993,1756339845839,-150.297,0.00017718,2]
[381769994,1756339845849,-2031.0,0.00017718,2]
[381769995,1756339845861,-3375.0,0.00017718,2]
[381769996,1756339845871,-1872.40309852,0.00017731,2]
[381769997,1756339845880,-163.29786715,0.00017731,2]
[381769998,1756339845890,-8566.00464866,0.00017742,2]
[381769999,1756339845900,-3491.8520154,0.00017748,2]
[381770000,1756339845910,-3169.13983,0.0001778,2]
[381770001,1756339845919,-254.69,0.00017796,2]
[381770002,1756339845930,-150.0,0.00017796,2]
[381770003,1756339845940,-150.0,0.00017796,2]
[381770004,1756339845950,-150.0,0.00017796,2]
[381770005,1756339845960,-539.68,0.00017796,2]
[381770006,1756339845969,-150.0,0.00017796,2]
[381770007,1756339845979,-150.0,0.00017796,2]
[381770008,1756339845989,-150.0,0.00017796,2]
[381770009,1756339845998,-150.51,0.00017796,2]
[381770010,1756339846007,-150.0,0.00017796,2]
[381770011,1756339846019,-3491.8520154,0.00017799,2]
[381770012,1756339846029,-2006.8177326,0.000178,2]
[381770013,1756339846038,-5500.0,0.000178,6]
[381770014,1756339846047,-8566.00464866,0.00017801,2]
[381770015,1756339846057,-500.0,0.00017801,2]
[381770016,1756339846066,-500.0,0.00017801,2]
[381770017,1756339846075,-742.0,0.00017801,2]
[381770018,1756339846085,-413.06,0.00017804,2]
[381770019,1756339846094,-400.0,0.00017804,2]
[381770020,1756339846104,-400.0,0.00017804,2]
[381770021,1756339846114,-400.0,0.00017804,2]
[381770022,1756339846123,-400.0,0.00017804,2]
[381770023,1756339846132,-400.0,0.00017804,2]
[381770024,1756339846141,-400.0,0.00017804,2]
[381770025,1756339846150,-400.0,0.00017804,2]
[381770026,1756339846159,-400.0,0.00017804,2]
[381770027,1756339846169,-268.04628684,0.00017804,2]
[381770028,1756339846177,-400.0,0.00017804,2]
[381770029,1756339846187,-400.0,0.00017804,2]
[381770030,1756339846196,-433.04877875,0.00017804,2]
[381770031,1756339846205,-400.0,0.00017804,2]
[381770032,1756339846214,-400.0,0.00017804,2]
[381770033,1756339846223,-400.0,0.00017804,2]
[381770034,1756339846233,-400.0,0.00017804,2]
[381770035,1756339846242,-400.0,0.00017804,2]
[381770036,1756339846251,-400.0,0.00017804,2]
[381770037,1756339846260,-400.0,0.00017804,2]
[381770038,1756339846270,-400.0,0.00017804,2]
[381770039,1756339846279,-194.99,0.00017804,2]
[381770040,1756339846289,-400.0,0.00017804,2]
[381770041,1756339846298,-400.0,0.00017804,2]
[381770042,1756339846307,-400.0,0.00017804,2]
[381770043,1756339846318,-542.93,0.00017804,2]
[381770044,1756339846327,-405.32,0.00017804,2]
[381770046,1756339846337,-472.2,0.00017804,2]
[381770049,1756339846346,-400.0,0.00017804,2]
[381770052,1756339846356,-186.18,0.00017804,2]
[381770055,1756339846365,-400.0,0.00017804,2]
[381770058,1756339846374,-400.0,0.00017804,2]
[381770060,1756339846383,-400.0,0.00017804,2]
[381770062,1756339846393,-400.0,0.00017804,2]
[381770063,1756339846402,-400.0,0.00017804,2]
[381770064,1756339846411,-889.48,0.00017804,2]
[381770065,1756339846420,-523.1,0.00017804,2]
[381770066,1756339846429,-400.0,0.00017804,2]
[381770067,1756339846438,-400.0,0.00017804,2]
[381770068,1756339846447,-400.0,0.00017804,2]
[381770069,1756339846456,-400.0,0.00017804,2]
[381770070,1756339846465,-400.0,0.00017804,2]
[381770071,1756339846474,-400.0,0.00017804,2]
[381770072,1756339846483,-428.3,0.00017804,2]
[381770073,1756339846492,-400.0,0.00017804,2]
[381770074,1756339846501,-488.49,0.00017804,2]
[381770075,1756339846510,-400.0,0.00017804,2]
[381770076,1756339846519,-400.0,0.00017804,2]
[381770077,1756339846528,-400.0,0.00017804,2]
[381770078,1756339846537,-530.15,0.00017804,2]
[381770079,1756339846546,-400.0,0.00017804,2]
[381770080,1756339846555,-400.0,0.00017804,2]
[381770081,1756339846565,-400.0,0.00017804,2]
[381770082,1756339846574,-400.0,0.00017804,2]
[381770083,1756339846583,-400.0,0.00017804,2]
[381770084,1756339846592,-400.0,0.00017804,2]
[381770085,1756339846602,-400.0,0.00017804,2]
[381770086,1756339846611,-400.0,0.00017804,2]
[381770087,1756339846620,-400.0,0.00017804,2]
[381770088,1756339846629,-400.0,0.00017804,2]
[381770089,1756339846638,-400.0,0.00017804,2]
[381770090,1756339846647,-400.0,0.00017804,2]
[381770091,1756339846656,-400.0,0.00017804,2]
[381770092,1756339846666,-400.0,0.00017804,2]
[381770093,1756339846675,-400.0,0.00017804,2]
[381770094,1756339846684,-1425.0,0.00017811,2]
[381770095,1756339846693,-500.0,0.00017817,2]
[381770096,1756339846702,-500.0,0.00017817,2]
[381770097,1756339846712,-540.61,0.00017817,2]
[381770098,1756339846722,-500.0,0.00017817,2]
[381770099,1756339846731,-51898.8060478,0.00017817,2]
[381770100,1756339846741,-400.0,0.00017818,2]
[381770101,1756339846751,-400.0,0.00017818,2]
[381770102,1756339846762,-400.0,0.00017818,2]
[381770103,1756339846772,-400.0,0.00017818,2]
[381770104,1756339846781,-400.0,0.00017818,2]
[381770105,1756339846791,-400.0,0.00017818,2]
[381770106,1756339846801,-400.0,0.00017818,2]
[381770107,1756339846813,-400.0,0.00017818,2]
[381770108,1756339846826,-539.48,0.00017818,2]
[381770109,1756339846836,-400.0,0.00017818,2]
[381770110,1756339846846,-400.0,0.00017818,2]
[381770111,1756339846857,-400.0,0.00017818,2]
[381770112,1756339846868,-935.45,0.00017818,2]
[381770113,1756339846878,-400.0,0.00017818,2]
[381770114,1756339846888,-400.0,0.00017818,2]
[381770115,1756339846899,-400.0,0.00017818,2]
[381770116,1756339846909,-400.0,0.00017818,2]
[381770117,1756339846919,-400.0,0.00017818,2]
[381770118,1756339846929,-400.0,0.00017818,2]
[381770119,1756339846942,-400.0,0.00017818,2]
[381770120,1756339846955,-400.0,0.00017818,2]
[381770121,1756339846966,-400.0,0.00017818,2]
[381770122,1756339846976,-400.0,0.00017818,2]
[381770123,1756339846985,-400.0,0.00017818,2]
[381770124,1756339846996,-400.0,0.00017818,2]
[381770125,1756339847005,-400.0,0.00017818,2]
[381770126,1756339847016,-400.0,0.00017818,2]
[381770127,1756339847026,-400.0,0.00017818,2]
[381770128,1756339847091,-400.0,0.00017818,2]
[381770129,1756339847101,-400.0,0.00017818,2]
[381770130,1756339847110,-400.0,0.00017818,2]
[381770131,1756339847119,-400.0,0.00017818,2]
[381770132,1756339847128,-400.0,0.00017818,2]
[381770133,1756339847138,-725.83,0.00017818,2]
[381770134,1756339847147,-400.0,0.00017818,2]